fUSD/lending_fUSD_20240216
["ID","MTS","AMOUNT","RATE_DAILY","PERIOD"]
[314221487,1708092645988,-758697.06123178,0.000446,2]
[314221488,1708092645996,-31964.01165994,0.00044609,6]
[314221489,1708092646006,-1000.0,0.00044626,2]
[314221490,1708092646016,-262.5641355,0.00044639,30]
[314221491,1708092646025,-151.59756528,0.00044649,24]
[314221492,1708092646033,-500.0,0.00044654,7]
[314221493,1708092646043,-12977.25691315,0.000447,120]
[314221494,1708092646052,-302.0,0.00044772,4]
[314221495,1708092646061,-500.0,0.00044927,7]
[314221496,1708092646070,-5138.63870979,0.0004498,2]
[314221497,1708092646079,-150.0,0.00044999,4]
[314221498,1708092646088,-506.12995973,0.00045,4]
[314221499,1708092646097,-4832.72150516,0.00045,17]
[314221500,1708092646106,-6489.61806503,0.00045,2]
[314221501,1708092646116,-10349.99999801,0.00045,120]
[314221502,1708092646125,-1051.14279969,0.00045,45]
[314221503,1708092646134,-6207.37579186,0.00045,2]
[314221504,1708092646143,-173.17999432,0.00045,30]
[314221505,1708092646152,-266.08602173,0.00045,10]
[314221506,1708092646161,-52111.07344822,0.00045,2]
[314221507,1708092646170,-9121.0,0.00045,10]
[314221508,1708092646179,-3857.29313971,0.00045,2]
[314221509,1708092646188,-2154.95980905,0.00045,2]
[314221510,1708092646197,-958572.2239118,0.00045,10]
[314221511,1708092646206,-2298.27406838,0.00045,7]
[314221512,1708092646215,-2020.17075865,0.00045,10]
[314221513,1708092646224,-1137.62667914,0.00045,30]
[314221514,1708092646233,-1107.0,0.00045,5]
[314221516,1708092646242,-5000.0,0.00045,30]
[314221517,1708092646251,-3294.43378057,0.00045,45]
[314221518,1708092646260,-10000.0,0.00045,45]
[314221519,1708092646271,-151.0,0.00045032,7]
[314221520,1708092646284,-530.43,0.00045102,2]
[314221521,1708092646293,-300.0,0.00045143,7]
[314221522,1708092646302,-2871.0,0.00045148,2]
[314221523,1708092646311,-1372.308,0.00045148,2]
[314221524,1708092646320,-7295.564,0.00045148,2]
[314221525,1708092646330,-500.0,0.000452,7]
[314221526,1708092646339,-228.9851885,0.0004525,30]
[314221527,1708092646348,-1364.43,0.000453,7]
[314221528,1708092646359,-180.261755,0.00045313,30]
[314221529,1708092646368,-150.0,0.00045351,30]
[314221530,1708092646377,-381.543,0.00045351,30]
[314221531,1708092646386,-289.5,0.000454,7]
[314221532,1708092646395,-153.81175386,0.00045419,30]
[314221533,1708092646404,-150.0,0.00045422,2]
[314221534,1708092646413,-153.81175386,0.00045438,30]
[314221535,1708092646424,-500.0,0.00045473,7]
[314221536,1708092646433,-2714.75693355,0.00045511,20]
[314221537,1708092646442,-604.0,0.00045525,7]
[314221538,1708092646451,-2471.08,0.00045536,120]
[314221539,1708092646461,-202.79866517,0.00045575,20]
[314221540,1708092646470,-151.0,0.00045579,30]
[314221541,1708092646479,-151.59756528,0.00045615,28]
[314221542,1708092646489,-1758.58588141,0.00045673,5]
[314221543,1708092646498,-450.0,0.00045691,30]
[314221544,1708092646507,-153.81175386,0.00045718,30]
[314221545,1708092646516,-500.0,0.00045747,7]
[314221546,1708092646526,-1000.0,0.00045791,2]
[314221547,1708092646536,-883.71,0.00045828,15]
[314221548,1708092646545,-155.0,0.00045913,2]
[314221549,1708092646554,-153.81175386,0.00045959,30]
[314221550,1708092646563,-810.0,0.00046,2]
[314221551,1708092646572,-62629.28417714,0.00046,4]
[314221552,1708092646582,-1085.98483162,0.00046,5]
[314221553,1708092646591,-5000.0,0.00046,30]
[314221554,1708092646600,-3293.0,0.00046,45]
[314221555,1708092646609,-10000.0,0.00046,45]
[314221556,1708092646618,-500.0,0.0004602,7]
[314221557,1708092646627,-868.02286732,0.0004606,120]
[314221558,1708092646636,-750.79,0.000461,7]
[314221559,1708092646722,-151.0,0.00046127,30]
[314221560,1708092646732,-450.0,0.00046239,30]
[314221561,1708092646741,-150.0,0.00046431,2]
[314221562,1708092646751,-152.90020697,0.0004645,41]
[314221563,1708092646760,-153.81175386,0.00046485,30]
[314221564,1708092646770,-153.81175386,0.00046513,30]
[314221565,1708092646779,-31964.01165994,0.00046533,8]
[314221566,1708092646789,-3000.0,0.00046575,120]
[314221567,1708092646798,-1000.0,0.00046575,120]
[314221568,1708092646807,-1000.0,0.00046575,120]
[314221569,1708092646817,-1000.0,0.00046575,120]
[314221570,1708092646826,-1000.0,0.00046575,120]
[314221571,1708092646835,-1000.0,0.00046575,120]
[314221572,1708092646844,-1000.0,0.00046575,120]
[314221573,1708092646853,-1000.0,0.00046575,120]
[314221574,1708092646862,-1000.0,0.00046575,120]
[314221575,1708092646871,-1000.0,0.00046575,120]
[314221576,1708092646880,-1059.0,0.00046575,120]
[314221577,1708092646889,-151.59756528,0.00046581,31]
[314221578,1708092646898,-1364.43,0.000466,7]
[314221579,1708092646907,-2714.75693355,0.00046608,22]
[314221580,1708092646917,-151.0,0.00046675,30]
[314221581,1708092646926,-1208.0,0.00046677,30]
[314221582,1708092646935,-276.94261938,0.00046741,12]
[314221583,1708092646944,-153.81175386,0.00046788,30]
[314221584,1708092646953,-153.81175386,0.00046863,30]
[314221585,1708092646962,-1816.0305,0.000469,14]
[314221586,1708092646971,-7000.0,0.00046933,2]
[314221587,1708092646980,-2200.24383486,0.00047,120]
[314221588,1708092646989,-5000.0,0.00047,30]
[314221589,1708092646998,-204.185687,0.00047123,120]
[314221590,1708092647007,-154.0,0.00047223,30]
[314221591,1708092647017,-1758.58588141,0.00047252,5]
[314221592,1708092647026,-530.43,0.00047365,2]
[314221593,1708092647035,-150.0,0.0004744,2]
[314221594,1708092647044,-2776.49,0.00047542,2]
[314221595,1708092647053,-3008.25,0.00047542,2]
[314221596,1708092647062,-151.59756528,0.00047547,35]
[314221597,1708092647071,-5096.41298007,0.000476,2]
[314221598,1708092647080,-3000.0,0.00047671,120]
[314221599,1708092647090,-289.5,0.000477,7]
[314221600,1708092647099,-2714.75693355,0.00047705,23]
[314221601,1708092647108,-500.0,0.0004774,90]
[314221602,1708092647117,-154.0,0.00047771,30]
[314221603,1708092647126,-150.0,0.00047799,7]
[314221604,1708092647135,-500000.0,0.000478,31]
[314221605,1708092647144,-151.0,0.000478,14]
[314221606,1708092647153,-154.516623,0.000478,14]
[314221607,1708092647162,-151.0,0.000478,14]
[314221608,1708092647171,-153.312168,0.000478,5]
[314221609,1708092647179,-151.0,0.000478,14]
[314221610,1708092647188,-151.0,0.000478,14]
[314221611,1708092647198,-151.0,0.000478,14]
[314221612,1708092647207,-151.0,0.000478,7]
[314221613,1708092647216,-193.441806,0.000478,14]
[314221614,1708092647224,-151.0,0.000478,14]
[314221615,1708092647233,-151.0,0.000478,14]
[314221616,1708092647242,-174.222451,0.000478,14]
[314221617,1708092647251,-151.0,0.000478,14]
[314221618,1708092647260,-151.776715,0.000478,14]
[314221619,1708092647269,-153.81175386,0.00047848,30]
[314221620,1708092647279,-14945.81010739,0.00047888,10]
[314221621,1708092647288,-155.16112371,0.000479,14]
[314221622,1708092647297,-155.16112371,0.000479,14]
[314221623,1708092647306,-155.16112371,0.000479,14]
[314221624,1708092647315,-155.16112371,0.000479,14]
[314221625,1708092647324,-155.16112371,0.000479,14]
[314221626,1708092647333,-155.16112371,0.000479,14]
[314221627,1708092647342,-155.16112371,0.000479,14]
[314221628,1708092647351,-155.16112371,0.000479,14]
[314221629,1708092647362,-155.16112371,0.000479,14]
[314221630,1708092647372,-155.16112371,0.000479,14]
[314221631,1708092647381,-155.16112371,0.000479,14]
[314221632,1708092647390,-155.16112371,0.000479,14]
[314221633,1708092647398,-155.16112371,0.000479,14]
[314221634,1708092647407,-155.16112371,0.000479,14]
[314221635,1708092647418,-155.16112371,0.000479,14]
[314221636,1708092647428,-155.16112371,0.000479,14]
[314221637,1708092647437,-155.16112371,0.000479,14]
[314221638,1708092647447,-155.16,0.000479,14]
[314221639,1708092647456,-162.91248998,0.000479,14]
[314221640,1708092647465,-162.91248998,0.000479,14]
[314221641,1708092647474,-162.91248998,0.000479,14]
[314221642,1708092647483,-162.91248998,0.000479,14]
[314221643,1708092647492,-162.91248998,0.000479,14]
[314221644,1708092647501,-162.91248998,0.000479,14]
[314221645,1708092647510,-162.91,0.000479,14]
[314221646,1708092647520,-150.11245173,0.000479,14]
[314221647,1708092647529,-150.11245173,0.000479,14]
[314221648,1708092647538,-150.11245173,0.000479,14]
[314221649,1708092647546,-150.11245173,0.000479,14]
[314221650,1708092647555,-150.11245173,0.000479,14]
[314221651,1708092647564,-150.11245173,0.000479,14]
[314221652,1708092647573,-150.11245173,0.000479,14]
[314221653,1708092647582,-150.11245173,0.000479,14]
[314221654,1708092647591,-150.11245173,0.000479,14]
[314221655,1708092647600,-150.11245173,0.000479,14]
[314221656,1708092647610,-150.11245173,0.000479,14]
[314221657,1708092647619,-150.11,0.000479,14]
[314221658,1708092647628,-160.01609495,0.000479,14]
[314221659,1708092647638,-160.01609495,0.000479,14]
[314221660,1708092647647,-160.01609495,0.000479,14]
[314221661,1708092647656,-160.01609495,0.000479,14]
[314221662,1708092647666,-160.01609495,0.000479,14]
[314221663,1708092647675,-160.01609495,0.000479,14]
[314221664,1708092647683,-160.01609495,0.000479,14]
[314221665,1708092647693,-160.01609495,0.000479,14]
[314221666,1708092647702,-160.01609495,0.000479,14]
[314221667,1708092647711,-160.01609495,0.000479,14]
[314221668,1708092647721,-160.01609495,0.000479,14]
[314221669,1708092647730,-160.01609495,0.000479,14]
[314221670,1708092647740,-160.01,0.000479,14]
[314221671,1708092647749,-156.55961586,0.000479,14]
[314221672,1708092647758,-156.55961586,0.000479,14]
[314221673,1708092647768,-156.55961586,0.000479,14]
[314221674,1708092647777,-156.55961586,0.000479,14]
[314221675,1708092647786,-156.55961586,0.000479,14]
[314221676,1708092647795,-156.55961586,0.000479,14]
[314221677,1708092647804,-156.55961586,0.000479,14]
[314221678,1708092647813,-156.55961586,0.000479,14]
[314221679,1708092647822,-156.55961586,0.000479,14]
[314221680,1708092647832,-156.55961586,0.000479,14]
[314221681,1708092647841,-156.55961586,0.000479,14]
[314221682,1708092647850,-156.55961586,0.000479,14]
[314221683,1708092647860,-156.55,0.000479,14]
[314221684,1708092647868,-180.36270987,0.00047904,30]
[314221685,1708092647877,-284.05,0.0004796,2]
[314221686,1708092647886,-10658.20575209,0.00048,15]
[314221687,1708092647895,-20000.0,0.00048,15]
[314221688,1708092647904,-5000.0,0.00048,30]
[314221689,1708092647913,-2871.0,0.00048148,2]
[314221690,1708092647987,-362.43249908,0.000482,2]
[314221691,1708092648003,-1364.43,0.000482,7]
[314221692,1708092648013,-153.81175386,0.00048218,30]
[314221693,1708092648022,-300.0,0.00048256,2]
[314221694,1708092648031,-300.0,0.00048256,2]
[314221695,1708092648040,-300.0,0.00048256,2]
[314221696,1708092648049,-300.0,0.00048256,2]
[314221697,1708092648058,-300.0,0.00048256,2]
[314221698,1708092648067,-214.70198504,0.00048256,2]
[314221699,1708092648075,-154.0,0.00048319,30]
[314221700,1708092648085,-915.62,0.00048356,2]
[314221701,1708092648094,-405.38,0.00048356,2]
[314221702,1708092648102,-7500.0,0.000484,14]
[314221703,1708092648111,-150.0,0.0004845,2]
[314221704,1708092648120,-31964.01165994,0.00048457,10]
[314221705,1708092648129,-422.54,0.00048493,2]
[314221706,1708092648138,-343.44,0.00048493,2]
[314221707,1708092648147,-418.88,0.00048493,2]
[314221708,1708092648156,-422.54,0.00048493,2]
[314221709,1708092648165,-343.44,0.00048493,2]
[314221710,1708092648174,-418.88,0.00048493,2]
[314221711,1708092648183,-421.67,0.00048493,2]
[314221712,1708092648192,-342.72,0.00048493,2]
[314221713,1708092648201,-418.88,0.00048493,2]
[314221714,1708092648210,-418.88,0.00048493,2]
[314221715,1708092648220,-417.53,0.00048493,2]
[314221716,1708092648229,-421.01,0.00048493,2]
[314221717,1708092648237,-342.2,0.00048493,2]
[314221718,1708092648247,-9685.994031,0.00048498,39]
[314221719,1708092648256,-17830.68235991,0.000485,120]
[314221720,1708092648265,-151.59756528,0.00048513,39]
[314221721,1708092648276,-153.81175386,0.00048537,30]
[314221722,1708092648287,-153.81175386,0.00048686,30]
[314221723,1708092648296,-254.0,0.0004869,2]
[314221724,1708092648305,-250.0,0.000487,60]
[314221725,1708092648316,-750.79,0.000487,7]
[314221726,1708092648325,-202.79866517,0.000487,24]
[314221727,1708092648334,-61797.31370049,0.000487,120]
[314221728,1708092648343,-276.94261938,0.000487,13]
[314221729,1708092648352,-1063.03370204,0.000487,2]
[314221730,1708092648363,-627.17538346,0.000487,2]
[314221731,1708092648373,-152.90020697,0.000487,44]
[314221732,1708092648383,-3000.0,0.00048767,120]
[314221733,1708092648392,-170332.19922722,0.0004879,2]
[314221734,1708092648401,-151.0,0.0004879,14]
[314221735,1708092648411,-151.0,0.0004879,7]
[314221736,1708092648422,-151.0,0.0004879,14]
[314221737,1708092648432,-151.0,0.0004879,14]
[314221738,1708092648442,-150.0,0.00048799,8]
[314221739,1708092648453,-150.0,0.00048799,8]
[314221740,1708092648462,-1190829.31112889,0.000488,5]
[314221741,1708092648472,-500000.0,0.000488,32]
[314221742,1708092648482,-500000.0,0.000488,31]
[314221743,1708092648491,-151.0,0.000488,14]
[314221744,1708092648500,-155.648598,0.000488,14]
[314221745,1708092648510,-151.0,0.000488,14]
[314221746,1708092648521,-151.0,0.000488,14]
[314221747,1708092648531,-2714.75693355,0.00048803,25]
[314221748,1708092648542,-1758.58588141,0.00048831,5]
[314221749,1708092648551,-154.0,0.00048867,30]
[314221750,1708092648560,-15267.88796618,0.0004888,2]
[314221751,1708092648569,-84984.05418574,0.00048987,30]
[314221752,1708092648804,-2555.03051301,0.00048987,30]
[314221753,1708092649277,-1079.255749,0.0003452,2]
[314221754,1708092649287,-1618.883623,0.00034794,2]
[314221755,1708092649296,-2158.511498,0.00034931,2]
[314221756,1708092649305,-1500.0,0.00037,2]
[314221757,1708092649314,-1500.0,0.00037,2]
[314221758,1708092649324,-1500.0,0.00037,2]
[314221759,1708092649333,-1500.0,0.00037,2]
[314221760,1708092649342,-159.13042194,0.00039961,4]
[314221761,1708092649353,-394.05392235,0.00039961,4]
[314221762,1708092649362,-4175.2659338,0.00040291,2]
[314221763,1708092649371,-915.62,0.00048356,2]
[314221764,1708092649380,-405.38,0.00048356,2]
[314221765,1708092649389,-7449.80968883,0.00048987,30]
[314221766,1708092649399,-398.37406421,0.00049,14]
[314221767,1708092649408,-8071.15421521,0.00049,10]
[314221768,1708092649420,-7174.63708417,0.00049,60]
[314221769,1708092649429,-5000.0,0.00049,30]
[314221770,1708092649438,-4114.94094968,0.00049112,120]
[314221771,1708092649462,-1500.0,0.00037,2]
[314221772,1708092649471,-1264.49672498,0.000397,2]
[314221773,1708092649480,-6587.56731702,0.00049112,120]
[314221774,1708092649490,-153.81175386,0.00049184,30]
[314221775,1708092649499,-153.81175386,0.00049257,30]
[314221776,1708092649508,-2567.595128,0.00049315,30]
[314221777,1708092649525,-200.0,0.00049315,30]
[314221778,1708092649534,-265.0,0.00049315,30]
[314221779,1708092649543,-200.0,0.00049315,30]
[314221780,1708092649553,-200.0,0.00049315,30]
[314221781,1708092649562,-200.0,0.00049315,30]
[314221782,1708092649572,-203.0,0.00049315,30]
[314221783,1708092649582,-200.0,0.00049315,30]
[314221784,1708092649591,-915.62,0.00049315,2]
[314221785,1708092649600,-915.62,0.00049315,2]
[314221786,1708092649610,-915.62,0.00049315,2]
[314221787,1708092649619,-405.38,0.00049315,2]
[314221788,1708092649628,-915.62,0.00049315,2]
[314221789,1708092649637,-405.38,0.00049315,2]
[314221790,1708092649646,-915.62,0.00049315,2]
[314221791,1708092649655,-915.62,0.00049315,2]
[314221792,1708092649664,-405.38,0.00049315,2]
[314221793,1708092649674,-613.65732228,0.00049315,2]
[314221794,1708092649686,-301.96267772,0.00049315,2]
[314221795,1708092649695,-405.38,0.00049315,2]
[314221796,1708092649705,-405.38,0.00049315,2]
[314221797,1708092649715,-405.38,0.00049315,2]
[314221798,1708092649724,-405.38,0.00049315,2]
[314221799,1708092649734,-405.38,0.00049315,2]
[314221800,1708092649744,-411.76,0.00049315,2]
[314221801,1708092649754,-800.0,0.00049315,30]
[314221802,1708092649764,-452.18365181,0.00049315,30]
[314221817,1708093831371,-750.0,0.00025,3]
[314221818,1708093831385,-2639.19930442,0.00029998,2]
[314221819,1708093831399,-641.08420735,0.00029999,2]
[314221820,1708093831416,-191.63562313,0.00030399,4]
[314221821,1708093831428,-556.59828451,0.000304,2]
[314221822,1708093831445,-200.0,0.0003041,5]
[314221823,1708093831460,-557.04795219,0.00031395,2]
[314221824,1708093831474,-1955.59887024,0.00031396,10]
[314221825,1708093831488,-383.56,0.00032971,2]
[314221826,1708093831502,-453.27,0.00033964,2]
[314221827,1708093831518,-160.81,0.00034096,2]
[314221828,1708093831531,-491.71,0.00034096,2]
[314221829,1708093831546,-250.0,0.00034202,111]
[314221830,1708093831560,-2478.2,0.00034427,2]
[314221831,1708093831575,-250.0,0.00034645,2]
[314221832,1708093831589,-207.95225766,0.00034687,2]
[314221833,1708093831603,-14521.84633802,0.00034787,2]
[314221834,1708093831624,-599.18699979,0.00034787,2]
[314221835,1708093831642,-917.30499999,0.00034787,2]
[314221836,1708093831661,-19207.70727905,0.00034787,2]
[314221837,1708093832067,-858.16390953,0.00034787,2]
[314221838,1708093832087,-9267.16457362,0.00034787,2]
[314221839,1708093832101,-250.0,0.00034863,2]
[314221840,1708093832117,-785.03,0.00034877,10]
[314221841,1708093832132,-1087.89722522,0.00034885,4]
[314221842,1708093832147,-402.47145121,0.00034885,4]
[314221843,1708093832161,-197.61262232,0.00034885,4]
[314221844,1708093832177,-2071.32412773,0.00034885,2]
[314221845,1708093832203,-9848.72591554,0.00034885,2]
[314221846,1708093832212,-393665.8263,0.00034887,2]
[314221847,1708093832222,-2500.0,0.00034887,2]
[314221848,1708093832231,-38846.5678,0.00034887,2]
[314221849,1708093832240,-2693.5578342,0.00034887,2]
[314221850,1708093832249,-2000.0,0.00034888,2]
[314221851,1708093832261,-200.0,0.0003498,2]
[314221853,1708093832272,-500.0,0.00034987,2]
[314221878,1708093832281,-39488.7513,0.00034987,2]
[314221883,1708093832537,-1000.0,0.00034987,2]
[314221885,1708093832555,-100000.0,0.00034987,2]
[314221887,1708093832565,-499.99,0.00034987,2]
[314221889,1708093832574,-2698.139372,0.00035068,2]
[314221891,1708093832584,-23900.0,0.0003521,2]
[314221893,1708093832593,-383.56,0.00035235,2]
[314221895,1708093832603,-3777.395121,0.00035342,2]
[314221897,1708093832612,-453.27,0.00035608,2]
[314221899,1708093832624,-2274.0,0.000357,3]
[314221900,1708093832634,-4317.022996,0.00036,2]
[314221901,1708093832643,-160.66121667,0.00036247,2]
[314221902,1708093832652,-6966.51844935,0.0003625,13]
[314221903,1708093832663,-348.32592247,0.0003625,13]
[314221904,1708093832673,-4027.63579195,0.0003625,13]
[314221905,1708093832682,-2457.21829882,0.00036259,13]
[314221906,1708093832691,-224.0,0.00036771,2]
[314221907,1708093832701,-2693.5578342,0.00037118,2]
[314221908,1708093832711,-453.27,0.00037251,2]
[314221909,1708093832721,-383.56,0.00037498,2]
[314221910,1708093832731,-36625.0,0.00037593,2]
[314221911,1708093832741,-180.0,0.00037671,2]
[314221912,1708093832752,-154.62,0.00037738,2]
[314221913,1708093832765,-800.0,0.0003775,2]
[314221914,1708093832774,-666.0,0.00037899,2]
[314221915,1708093832783,-86294.4802176,0.000379,2]
[314221916,1708093832794,-167.39,0.0003792,2]
[314221917,1708093832804,-300.0,0.00038,39]
[314221918,1708093832813,-164.98,0.00038008,2]
[314221919,1708093832823,-2834.0,0.00038356,15]
[314221920,1708093832833,-905.88,0.00038356,15]
[314221921,1708093832842,-154.07,0.00038356,2]
[314221922,1708093832852,-177.38,0.00038862,2]
[314221923,1708093832862,-453.27,0.00038895,2]
[314221924,1708093832871,-155.0,0.00038951,2]
[314221925,1708093832880,-150.0,0.00038999,20]
[314221926,1708093832890,-1507.81,0.00039,30]
[314221927,1708093832899,-600.0,0.00039,40]
[314221928,1708093832909,-166.37,0.00039148,2]
[314221929,1708093832919,-168.4,0.0003926,2]
[314221930,1708093832928,-2693.5578342,0.00039349,2]
[314221931,1708093832938,-200.0,0.00039353,2]
[314221932,1708093832947,-354.68,0.0003941,2]
[314221933,1708093832957,-224.0,0.00039551,2]
[314221934,1708093832967,-195.483491,0.00039721,2]
[314221935,1708093832977,-231.737997,0.00039721,2]
[314221936,1708093832986,-231.737997,0.00039721,2]
[314221937,1708093832996,-156.386792,0.00039721,2]
[314221938,1708093833006,-231.737997,0.00039721,2]
[314221939,1708093833016,-2290.00973102,0.00039761,2]
[314221940,1708093833026,-196.38166492,0.00039762,13]
[314221941,1708093833035,-1714.96741771,0.00039762,13]
[314221942,1708093833045,-151.62755103,0.00039762,5]
[314221943,1708093833055,-383.56,0.00039762,2]
[314221944,1708093833064,-530.0,0.0003979,2]
[314221945,1708093833074,-172588.960435,0.00039851,5]
[314221946,1708093833085,-86294.4802176,0.00039852,5]
[314221947,1708093833095,-245000.0,0.00039861,2]
[314221948,1708093833105,-145619.3933,0.00039862,7]
[314221949,1708093833116,-210.0,0.00039862,2]
[314221950,1708093833125,-260.0,0.0003989,2]
[314221951,1708093833137,-5000.0,0.00039899,3]
[314221952,1708093833147,-207.95225766,0.00039899,2]
[314221953,1708093833157,-202.10904394,0.00039902,2]
[314221954,1708093833166,-1126.21181313,0.00039902,2]
[314221955,1708093833175,-186.50213598,0.00039902,2]
[314221956,1708093833184,-9706.60601281,0.00039902,2]
[314221957,1708093833194,-726.16176006,0.00039902,2]
[314221958,1708093833203,-154.07,0.00039954,2]
[314221959,1708093833212,-45118.80767357,0.00039961,2]
[314221960,1708093833271,-1301.673,0.00039961,2]
[314221961,1708093833283,-1398.62790341,0.00039961,2]
[314221962,1708093833295,-421.13,0.00039961,2]
[314221963,1708093833326,-367.42668915,0.00039961,2]
[314221964,1708093833338,-847.512,0.00039961,2]
[314221970,1708093837379,-172.18787609,0.00039902,2]
[314221971,1708093837390,-61632.39905384,0.00039961,2]
[314221972,1708093837399,-265.08,0.0004,7]
[314221973,1708093837409,-600.0,0.0004,41]
[314221974,1708093837418,-150.0,0.0004,2]
[314221975,1708093837427,-164.121045,0.0004,14]
[314221976,1708093837437,-272.47200459,0.00040001,31]
[314221977,1708093837447,-268.13471181,0.00040001,31]
[314221978,1708093837656,-29300.43291376,0.00040002,90]
[314221979,1708093837673,-2360.82534125,0.00040002,90]
[314221980,1708093837698,-621849.78599345,0.00040002,90]
[314221983,1708093837726,-8028.98762506,0.00040002,90]
[314221984,1708093837738,-258452.45206557,0.00040002,90]
[314221985,1708093837750,-5213.38451999,0.00040002,90]
[314221986,1708093837768,-250.06747911,0.00040002,90]
[314221987,1708093837788,-872.88994334,0.00040002,90]
[314221988,1708093837800,-442.15199464,0.00040002,90]
[314221993,1708093839972,-597.60997935,0.00040002,90]
[314221994,1708093840869,-1270.80356579,0.00040002,90]
[314221995,1708093840881,-2341.00771194,0.00040002,90]
[314222000,1708093842358,-775.13806585,0.00039901,4]
[314222001,1708093842369,-336.33269743,0.00039901,4]
[314222002,1708093842380,-6714.87329959,0.00040002,90]
[314222003,1708093842394,-405.5664405,0.00040002,90]
[314222004,1708093842405,-437.55999999,0.00040002,90]
[314222005,1708093842418,-16513.83401791,0.00040002,90]
[314222006,1708093842430,-1300.08603421,0.00040002,90]
[314222007,1708093842443,-2487.02636,0.00040002,90]
[314222008,1708093842455,-41160.65471455,0.00040002,90]
[314222009,1708093842466,-351.35258797,0.00040002,2]
[314222010,1708093842476,-409.33,0.000401,7]
[314222011,1708093842486,-340.87,0.000401,7]
[314222012,1708093842495,-156.386792,0.00040218,2]
[314222013,1708093842505,-2705.42673246,0.00040449,4]
[314222014,1708093842514,-682.76275935,0.00040449,7]
[314222015,1708093842528,-3116.2702794,0.00040449,7]
[314222016,1708093842557,-408.37476096,0.00040449,7]
[314222017,1708093842567,-613.03523904,0.00040449,5]
[314222018,1708093842582,-1118.38400007,0.00040449,5]
[314222019,1708093842595,-1.996897,0.00040449,5]
[314222020,1708093842605,-158.77174953,0.00040449,3]
[314222021,1708093842616,-453.27,0.00040539,2]
[314222022,1708093842628,-300.0,0.00040547,2]
[314222023,1708093842638,-215.48277646,0.00040548,7]
[314222024,1708093842655,-784.51722354,0.00040548,7]
[314222025,1708093842667,-1000.0,0.00040548,7]
[314222026,1708093842677,-1000.0,0.00040548,7]
[314222027,1708093842687,-1000.0,0.00040548,7]
[314222028,1708093842698,-318.81330956,0.00040548,7]
[314222029,1708093842711,-516.68256542,0.00040548,7]
[314222030,1708093842723,-164.50412502,0.00040548,7]
[314222031,1708093842733,-1000.0,0.00040548,7]
[314222032,1708093842743,-404.0,0.00040548,7]
[314222033,1708093842753,-1000.0,0.000406,15]
[314222034,1708093842763,-156.386792,0.00040714,2]
[314222035,1708093842775,-152.11,0.000408,4]
[314222037,1708093842784,-152.11,0.000408,4]
[314222039,1708093842795,-152.11,0.000408,4]
[314222040,1708093842804,-152.11,0.000408,4]
[314222041,1708093842815,-152.11,0.000408,4]
[314222042,1708093842826,-152.11,0.000408,4]
[314222043,1708093842836,-152.11,0.000408,4]
[314222044,1708093842847,-152.11,0.000408,4]
[314222045,1708093842856,-152.11,0.000408,4]
[314222046,1708093842866,-152.11,0.000408,4]
[314222047,1708093842875,-152.11,0.000408,4]
[314222048,1708093842886,-152.11,0.000408,4]
[314222049,1708093842897,-152.11,0.000408,4]
[314222050,1708093842906,-152.11,0.000408,4]
[314222051,1708093842917,-152.11,0.000408,4]
[314222052,1708093842927,-152.11,0.000408,4]
[314222053,1708093842937,-152.11,0.000408,4]
[314222054,1708093842947,-154.06,0.000408,4]
[314222055,1708093842957,-164.121045,0.00040822,14]